[Event "Titled Tuesday Blitz October 5 2021"]
[White "Rozhkov, Viacheslav"]
[Black "Nesterov, Arseniy"]
[WhiteFideId "4181484"]
[BlackFideId "24198455"]
[WhiteElo "2324"]
[BlackElo "2494"]
[Result "0-1"]
[Round "01"]
[TimeControl "180+1"]
[Date "2021.10.05"]
[WhiteClock "0:00:02"]
[BlackClock "0:00:40"]

1. e4 {[%clk 0:03:00]}  e5 {[%clk 0:03:00]} 2. Nf3 {[%clk 0:03:00]}  Nc6 {[%clk 0:03:00]} 3. d4 {[%clk 0:02:59]}  exd4 {[%clk 0:03:00]} 4. Bc4 {[%clk 0:02:59]}  Nf6 {[%clk 0:03:00]} 5. e5 {[%clk 0:02:58]}  d5 {[%clk 0:03:00]} 6. Bb5 {[%clk 0:02:58]}  Ne4 {[%clk 0:03:00]} 7. Nxd4 {[%clk 0:02:58]}  Bc5 {[%clk 0:03:01]} 8. Be3 {[%clk 0:02:51]}  Bxd4 {[%clk 0:02:49]} 9. Bxd4 {[%clk 0:02:47]}  O-O {[%clk 0:02:49]} 10. Bxc6 {[%clk 0:02:41]}  bxc6 {[%clk 0:02:50]} 11. O-O {[%clk 0:02:37]}  c5 {[%clk 0:02:39]} 12. Be3 {[%clk 0:02:37]}  d4 {[%clk 0:02:39]} 13. Bc1 {[%clk 0:02:30]}  Bb7 {[%clk 0:02:33]} 14. f3 {[%clk 0:02:23]}  Ng5 {[%clk 0:02:33]} 15. f4 {[%clk 0:02:21]}  Ne4 {[%clk 0:02:26]} 16. c4 {[%clk 0:01:33]}  f6 {[%clk 0:02:08]} 17. exf6 {[%clk 0:01:14]}  Qxf6 {[%clk 0:02:06]} 18. Nd2 {[%clk 0:01:13]}  Rae8 {[%clk 0:02:02]} 19. Nf3 {[%clk 0:01:10]}  Nd6 {[%clk 0:01:57]} 20. Ne5 {[%clk 0:01:00]}  Nf7 {[%clk 0:01:52]} 21. Nd3 {[%clk 0:00:42]}  Qf5 {[%clk 0:01:42]} 22. b4 {[%clk 0:00:25]}  cxb4 {[%clk 0:01:35]} 23. c5 {[%clk 0:00:20]}  a5 {[%clk 0:01:25]} 24. Bb2 {[%clk 0:00:19]}  Qd5 {[%clk 0:01:21]} 25. Qg4 {[%clk 0:00:18]}  Nh6 {[%clk 0:01:19]} 26. Qg5 {[%clk 0:00:18]}  Nf5 {[%clk 0:01:16]} 27. Ne5 {[%clk 0:00:15]}  Ne3 {[%clk 0:01:10]} 28. Rf3 {[%clk 0:00:14]}  h6 {[%clk 0:00:59]} 29. Qg6 {[%clk 0:00:12]}  Re6 {[%clk 0:00:50]} 30. Qg3 {[%clk 0:00:09]}  Nxg2 {[%clk 0:00:43]} 31. Qxg2 {[%clk 0:00:03]}  Rxe5 {[%clk 0:00:40]} 32. Rg3 {[%clk 0:00:02]}  Qxg2+ {[%clk 0:00:40]} 33. Rxg2 {[%clk 0:00:02]}  Rxf4 {[%clk 0:00:40]} 0-1


[Site "https://www.chess.com"]

[Event "Titled Tuesday Blitz October 5 2021"]
[White "Sadhwani, Raunak"]
[Black "losersgame"]
[WhiteFideId "35093487"]
[WhiteElo "2517"]
[BlackElo "2475"]
[Result "1-0"]
[Round "01"]
[TimeControl "180+1"]
[Date "2021.10.05"]
[WhiteClock "0:00:31"]
[BlackClock "0:00:01"]

1. d4 {[%clk 0:03:00]}  Nf6 {[%clk 0:02:58]} 2. Nf3 {[%clk 0:03:00]}  g6 {[%clk 0:02:57]} 3. Nc3 {[%clk 0:03:00]}  d5 {[%clk 0:02:53]} 4. Bf4 {[%clk 0:03:01]}  Bg7 {[%clk 0:02:51]} 5. Nb5 {[%clk 0:03:01]}  Na6 {[%clk 0:02:49]} 6. e3 {[%clk 0:03:00]}  c6 {[%clk 0:02:44]} 7. Nc3 {[%clk 0:03:00]}  Nc7 {[%clk 0:02:39]} 8. h3 {[%clk 0:03:00]}  O-O {[%clk 0:02:25]} 9. Be2 {[%clk 0:03:00]}  a5 {[%clk 0:02:04]} 10. O-O {[%clk 0:02:56]}  b6 {[%clk 0:02:04]} 11. Ne5 {[%clk 0:02:49]}  Bb7 {[%clk 0:02:03]} 12. Bf3 {[%clk 0:02:44]}  Ne6 {[%clk 0:02:03]} 13. Qd2 {[%clk 0:02:26]}  Nxf4 {[%clk 0:02:01]} 14. exf4 {[%clk 0:02:27]}  e6 {[%clk 0:01:57]} 15. Ne2 {[%clk 0:02:19]}  c5 {[%clk 0:01:53]} 16. c3 {[%clk 0:02:19]}  Qe7 {[%clk 0:01:45]} 17. Rfe1 {[%clk 0:02:19]}  Rfd8 {[%clk 0:01:39]} 18. Qe3 {[%clk 0:02:13]}  a4 {[%clk 0:01:33]} 19. a3 {[%clk 0:02:13]}  Rac8 {[%clk 0:00:56]} 20. Rad1 {[%clk 0:02:12]}  Ne8 {[%clk 0:00:47]} 21. g4 {[%clk 0:01:58]}  Nd6 {[%clk 0:00:46]} 22. Ng3 {[%clk 0:01:58]}  cxd4 {[%clk 0:00:36]} 23. Rxd4 {[%clk 0:01:58]}  Qf8 {[%clk 0:00:21]} 24. Rdd1 {[%clk 0:01:38]}  b5 {[%clk 0:00:21]} 25. h4 {[%clk 0:01:23]}  Nc4 {[%clk 0:00:20]} 26. Nxc4 {[%clk 0:01:20]}  Rxc4 {[%clk 0:00:18]} 27. f5 {[%clk 0:01:17]}  d4 {[%clk 0:00:09]} 28. cxd4 {[%clk 0:01:16]}  Rcxd4 {[%clk 0:00:07]} 29. fxe6 {[%clk 0:00:31]}  Bxf3 {[%clk 0:00:01]} 30. Qxf3 {[%clk 0:00:30]}  Rxd1 {[%clk 0:00:01]} 31. Rxd1 {[%clk 0:00:31]} 1-0


[Site "https://www.chess.com"]

[Event "Titled Tuesday Blitz October 5 2021"]
[White "Sagripanti, Michele"]
[Black "Moskalenko, Alexander"]
[WhiteFideId "847895"]
[BlackFideId "4155351"]
[WhiteElo "2195"]
[BlackElo "2515"]
[Result "1/2-1/2"]
[Round "01"]
[TimeControl "180+1"]
[Date "2021.10.05"]
[WhiteClock "0:00:14"]
[BlackClock "0:00:12"]

1. e4 {[%clk 0:03:00]}  e5 {[%clk 0:02:52]} 2. d4 {[%clk 0:03:00]}  exd4 {[%clk 0:02:46]} 3. c3 {[%clk 0:03:01]}  d5 {[%clk 0:02:45]} 4. Qxd4 {[%clk 0:03:01]}  dxe4 {[%clk 0:02:31]} 5. Qxd8+ {[%clk 0:03:01]}  Kxd8 {[%clk 0:02:31]} 6. Bc4 {[%clk 0:03:01]}  Ke8 {[%clk 0:02:31]} 7. f3 {[%clk 0:02:57]}  Nf6 {[%clk 0:02:29]} 8. Bg5 {[%clk 0:02:57]}  Nbd7 {[%clk 0:02:26]} 9. Nd2 {[%clk 0:02:57]}  Ne5 {[%clk 0:02:26]} 10. Bb3 {[%clk 0:02:43]}  Nd3+ {[%clk 0:02:22]} 11. Ke2 {[%clk 0:02:43]}  Nxb2 {[%clk 0:01:57]} 12. Bxf6 {[%clk 0:02:39]}  gxf6 {[%clk 0:01:58]} 13. Nxe4 {[%clk 0:02:40]}  Ba3 {[%clk 0:01:35]} 14. Nxf6+ {[%clk 0:02:23]}  Kf8 {[%clk 0:01:35]} 15. Nh3 {[%clk 0:02:15]}  b6 {[%clk 0:01:32]} 16. Nf4 {[%clk 0:02:15]}  Ba6+ {[%clk 0:01:32]} 17. Kd2 {[%clk 0:02:09]}  Nc4+ {[%clk 0:01:22]} 18. Kc2 {[%clk 0:02:07]}  Ne3+ {[%clk 0:01:20]} 19. Kd2 {[%clk 0:02:06]}  Nc4+ {[%clk 0:01:18]} 20. Kc2 {[%clk 0:02:06]}  Rd8 {[%clk 0:01:17]} 21. Bxc4 {[%clk 0:01:50]}  Bxc4 {[%clk 0:01:18]} 22. Rhd1 {[%clk 0:01:47]}  Kg7 {[%clk 0:01:17]} 23. N6h5+ {[%clk 0:01:44]}  Kh6 {[%clk 0:01:16]} 24. g4 {[%clk 0:01:41]}  Be7 {[%clk 0:00:59]} 25. h4 {[%clk 0:01:35]}  Bxh4 {[%clk 0:00:59]} 26. Rh1 {[%clk 0:01:35]}  Kg5 {[%clk 0:00:55]} 27. a4 {[%clk 0:01:30]}  Rhe8 {[%clk 0:00:48]} 28. Nh3+ {[%clk 0:01:24]}  Kh6 {[%clk 0:00:48]} 29. N3f4 {[%clk 0:01:23]}  Kg5 {[%clk 0:00:47]} 30. a5 {[%clk 0:01:11]}  Re5 {[%clk 0:00:23]} 31. Nh3+ {[%clk 0:00:58]}  Kh6 {[%clk 0:00:23]} 32. N3f4 {[%clk 0:00:59]}  Bg5 {[%clk 0:00:20]} 33. axb6 {[%clk 0:00:55]}  axb6 {[%clk 0:00:21]} 34. Ng3+ {[%clk 0:00:50]}  Kg7 {[%clk 0:00:20]} 35. Nfh5+ {[%clk 0:00:47]}  Kg8 {[%clk 0:00:20]} 36. f4 {[%clk 0:00:45]}  Bd3+ {[%clk 0:00:20]} 37. Kc1 {[%clk 0:00:37]}  Bh6 {[%clk 0:00:20]} 38. Rd1 {[%clk 0:00:29]}  Rc5 {[%clk 0:00:18]} 39. Rxd3 {[%clk 0:00:23]}  Rxd3 {[%clk 0:00:17]} 40. Ra8+ {[%clk 0:00:24]}  Bf8 {[%clk 0:00:16]} 41. Nf6+ {[%clk 0:00:18]}  Kg7 {[%clk 0:00:17]} 42. Ngh5+ {[%clk 0:00:16]}  Kh6 {[%clk 0:00:16]} 43. Rxf8 {[%clk 0:00:13]}  Rcxc3+ {[%clk 0:00:15]} 44. Kb1 {[%clk 0:00:14]}  Rb3+ {[%clk 0:00:13]} 45. Kc1 {[%clk 0:00:14]}  Rbc3+ {[%clk 0:00:12]} 46. Kb1 {[%clk 0:00:14]}  Rb3+ {[%clk 0:00:13]} 47. Kc1 {[%clk 0:00:14]}  Rbc3+ {[%clk 0:00:12]} 1/2-1/2


[Site "https://www.chess.com"]

[Event "Titled Tuesday Blitz October 5 2021"]
[White "Sanal, Vahap"]
[Black "Pires, Marcos Vinicius Torsani"]
[WhiteFideId "6300545"]
[BlackFideId "2118939"]
[WhiteElo "2492"]
[BlackElo "2273"]
[Result "1-0"]
[Round "01"]
[TimeControl "180+1"]
[Date "2021.10.05"]
[WhiteClock "0:02:03"]
[BlackClock "0:01:56"]

1. e4 {[%clk 0:02:56]}  c6 {[%clk 0:03:00]} 2. d3 {[%clk 0:02:54]}  d5 {[%clk 0:02:57]} 3. Nd2 {[%clk 0:02:55]}  e5 {[%clk 0:02:56]} 4. g3 {[%clk 0:02:56]}  Bd6 {[%clk 0:02:56]} 5. Bg2 {[%clk 0:02:56]}  Nf6 {[%clk 0:02:51]} 6. Ngf3 {[%clk 0:02:57]}  O-O {[%clk 0:02:51]} 7. O-O {[%clk 0:02:57]}  Nbd7 {[%clk 0:02:52]} 8. c3 {[%clk 0:02:58]}  a5 {[%clk 0:02:51]} 9. Re1 {[%clk 0:02:58]}  Re8 {[%clk 0:02:51]} 10. a4 {[%clk 0:02:57]}  Qc7 {[%clk 0:02:50]} 11. Qc2 {[%clk 0:02:57]}  Nf8 {[%clk 0:02:49]} 12. Nf1 {[%clk 0:02:56]}  b6 {[%clk 0:02:49]} 13. Ne3 {[%clk 0:02:56]}  dxe4 {[%clk 0:02:48]} 14. dxe4 {[%clk 0:02:56]}  Ba6 {[%clk 0:02:46]} 15. Nf5 {[%clk 0:02:56]}  Bc5 {[%clk 0:02:43]} 16. Bg5 {[%clk 0:02:56]}  N8d7 {[%clk 0:02:44]} 17. Rad1 {[%clk 0:02:54]}  h6 {[%clk 0:02:44]} 18. Bc1 {[%clk 0:02:53]}  Rad8 {[%clk 0:02:41]} 19. h4 {[%clk 0:02:51]}  Bf8 {[%clk 0:02:34]} 20. Bh3 {[%clk 0:02:36]}  Kh7 {[%clk 0:02:28]} 21. g4 {[%clk 0:02:29]}  g6 {[%clk 0:02:23]} 22. g5 {[%clk 0:02:24]}  hxg5 {[%clk 0:02:11]} 23. Nxg5+ {[%clk 0:02:24]}  Kg8 {[%clk 0:02:11]} 24. Nxf7 {[%clk 0:02:18]}  Kxf7 {[%clk 0:02:09]} 25. Qb3+ {[%clk 0:02:17]}  Re6 {[%clk 0:01:59]} 26. Nh6+ {[%clk 0:02:02]}  Bxh6 {[%clk 0:01:55]} 27. Qxe6+ {[%clk 0:02:02]}  Kg7 {[%clk 0:01:56]} 28. Qe7+ {[%clk 0:02:03]} 1-0


[Site "https://www.chess.com"]

[Event "Titled Tuesday Blitz October 5 2021"]
[White "Sarana, Alexey"]
[Black "Babiy, Olga"]
[WhiteFideId "24133795"]
[BlackFideId "14117258"]
[WhiteElo "2671"]
[BlackElo "2192"]
[Result "1-0"]
[Round "01"]
[TimeControl "180+1"]
[Date "2021.10.05"]
[WhiteClock "0:00:17"]
[BlackClock "0:00:02"]

1. e4 {[%clk 0:02:58]}  c6 {[%clk 0:02:58]} 2. d3 {[%clk 0:02:55]}  d5 {[%clk 0:02:58]} 3. Nf3 {[%clk 0:02:56]}  dxe4 {[%clk 0:02:53]} 4. dxe4 {[%clk 0:02:57]}  Qxd1+ {[%clk 0:02:53]} 5. Kxd1 {[%clk 0:02:57]}  Nd7 {[%clk 0:02:40]} 6. Nbd2 {[%clk 0:02:56]}  e5 {[%clk 0:02:39]} 7. Bd3 {[%clk 0:02:51]}  f6 {[%clk 0:02:38]} 8. c3 {[%clk 0:02:48]}  Nc5 {[%clk 0:02:38]} 9. Bc2 {[%clk 0:02:45]}  Be6 {[%clk 0:02:36]} 10. b4 {[%clk 0:02:45]}  Nd7 {[%clk 0:02:35]} 11. Bb3 {[%clk 0:02:45]}  Kf7 {[%clk 0:02:27]} 12. Kc2 {[%clk 0:02:39]}  a5 {[%clk 0:02:27]} 13. Bxe6+ {[%clk 0:02:27]}  Kxe6 {[%clk 0:02:26]} 14. Kb3 {[%clk 0:02:27]}  axb4 {[%clk 0:02:17]} 15. cxb4 {[%clk 0:02:28]}  Ne7 {[%clk 0:02:14]} 16. Nc4 {[%clk 0:02:25]}  Nc8 {[%clk 0:02:10]} 17. Be3 {[%clk 0:02:24]}  Nd6 {[%clk 0:02:07]} 18. Nxd6 {[%clk 0:02:23]}  Bxd6 {[%clk 0:02:08]} 19. Rhd1 {[%clk 0:02:23]}  Rhd8 {[%clk 0:01:41]} 20. a4 {[%clk 0:02:19]}  Nf8 {[%clk 0:01:39]} 21. Nd2 {[%clk 0:02:18]}  Bc7 {[%clk 0:01:35]} 22. Nc4 {[%clk 0:02:17]}  b5 {[%clk 0:01:28]} 23. axb5 {[%clk 0:02:15]}  cxb5 {[%clk 0:01:27]} 24. Na3 {[%clk 0:02:12]}  Rab8 {[%clk 0:01:13]} 25. Rxd8 {[%clk 0:02:11]}  Bxd8 {[%clk 0:01:14]} 26. Rc1 {[%clk 0:02:11]}  Be7 {[%clk 0:01:08]} 27. Rc6+ {[%clk 0:02:11]}  Kd7 {[%clk 0:01:08]} 28. Ra6 {[%clk 0:02:11]}  Ne6 {[%clk 0:01:04]} 29. Ra7+ {[%clk 0:02:11]}  Kd8 {[%clk 0:00:59]} 30. Ra5 {[%clk 0:02:10]}  Nc7 {[%clk 0:00:55]} 31. Nb1 {[%clk 0:02:07]}  Kd7 {[%clk 0:00:49]} 32. Nc3 {[%clk 0:02:07]}  Kc6 {[%clk 0:00:49]} 33. Ra1 {[%clk 0:01:56]}  Rd8 {[%clk 0:00:48]} 34. Rc1 {[%clk 0:01:45]}  Kb7 {[%clk 0:00:47]} 35. Ra1 {[%clk 0:01:35]}  h5 {[%clk 0:00:45]} 36. Ra7+ {[%clk 0:01:29]}  Kc6 {[%clk 0:00:45]} 37. Nd5 {[%clk 0:01:28]}  Bd6 {[%clk 0:00:39]} 38. Bb6 {[%clk 0:01:26]}  Rd7 {[%clk 0:00:30]} 39. Bxc7 {[%clk 0:01:26]}  Bxc7 {[%clk 0:00:31]} 40. f3 {[%clk 0:01:25]}  Bd8 {[%clk 0:00:24]} 41. Ra8 {[%clk 0:01:25]}  g6 {[%clk 0:00:18]} 42. Rc8+ {[%clk 0:01:25]}  Kb7 {[%clk 0:00:18]} 43. Rc5 {[%clk 0:01:25]}  Ka6 {[%clk 0:00:11]} 44. Rc6+ {[%clk 0:01:25]}  Kb7 {[%clk 0:00:12]} 45. Re6 {[%clk 0:01:25]}  g5 {[%clk 0:00:08]} 46. h3 {[%clk 0:01:25]}  Ka7 {[%clk 0:00:07]} 47. Nc3 {[%clk 0:01:20]}  Rd2 {[%clk 0:00:04]} 48. Nxb5+ {[%clk 0:01:20]}  Kb7 {[%clk 0:00:05]} 49. Nd6+ {[%clk 0:01:20]}  Kb8 {[%clk 0:00:04]} 50. g4 {[%clk 0:01:15]}  hxg4 {[%clk 0:00:04]} 51. hxg4 {[%clk 0:01:16]}  Rd3+ {[%clk 0:00:04]} 52. Kc4 {[%clk 0:01:17]}  Rxf3 {[%clk 0:00:05]} 53. Kd5 {[%clk 0:01:16]}  Kc7 {[%clk 0:00:05]} 54. Nf5 {[%clk 0:00:53]}  Rd3+ {[%clk 0:00:04]} 55. Kc4 {[%clk 0:00:52]}  Rd1 {[%clk 0:00:04]} 56. b5 {[%clk 0:00:51]}  Rc1+ {[%clk 0:00:04]} 57. Kd3 {[%clk 0:00:52]}  Kd7 {[%clk 0:00:03]} 58. Rd6+ {[%clk 0:00:52]}  Kc7 {[%clk 0:00:04]} 59. b6+ {[%clk 0:00:50]}  Kc8 {[%clk 0:00:03]} 60. b7+ {[%clk 0:00:51]}  Kxb7 {[%clk 0:00:01]} 61. Kd2 {[%clk 0:00:49]}  Rc8 {[%clk 0:00:02]} 62. Rd7+ {[%clk 0:00:48]}  Kc6 {[%clk 0:00:02]} 63. Rf7 {[%clk 0:00:49]}  Ba5+ {[%clk 0:00:02]} 64. Kd3 {[%clk 0:00:36]}  Bd8 {[%clk 0:00:02]} 65. Rf8 {[%clk 0:00:34]}  Ra8 {[%clk 0:00:02]} 66. Kc4 {[%clk 0:00:33]}  Kd7 {[%clk 0:00:03]} 67. Rh8 {[%clk 0:00:29]}  Ra4+ {[%clk 0:00:03]} 68. Kd3 {[%clk 0:00:27]}  Ra3+ {[%clk 0:00:03]} 69. Kc2 {[%clk 0:00:28]}  Ra2+ {[%clk 0:00:04]} 70. Kb3 {[%clk 0:00:28]}  Re2 {[%clk 0:00:04]} 71. Rh7+ {[%clk 0:00:28]}  Ke6 {[%clk 0:00:04]} 72. Rh8 {[%clk 0:00:28]}  Kd7 {[%clk 0:00:05]} 73. Kc4 {[%clk 0:00:27]}  Rxe4+ {[%clk 0:00:04]} 74. Kd5 {[%clk 0:00:28]}  Rxg4 {[%clk 0:00:03]} 75. Rh7+ {[%clk 0:00:28]}  Kc8 {[%clk 0:00:03]} 76. Nd6+ {[%clk 0:00:28]}  Kb8 {[%clk 0:00:04]} 77. Kc6 {[%clk 0:00:26]}  Rg1 {[%clk 0:00:04]} 78. Rh8 {[%clk 0:00:21]}  Rc1+ {[%clk 0:00:03]} 79. Kd7 {[%clk 0:00:21]}  Rd1 {[%clk 0:00:02]} 80. Rxd8+ {[%clk 0:00:19]}  Ka7 {[%clk 0:00:02]} 81. Kc6 {[%clk 0:00:16]}  Rc1+ {[%clk 0:00:02]} 82. Kd5 {[%clk 0:00:17]}  Rd1+ {[%clk 0:00:02]} 83. Ke6 {[%clk 0:00:17]} 1-0


[Site "https://www.chess.com"]

[Event "Titled Tuesday Blitz October 5 2021"]
[White "Seliverstov, Vladimir"]
[Black "Ekdyshman, Mikhail"]
[WhiteFideId "4192036"]
[BlackFideId "4149416"]
[WhiteElo "2489"]
[BlackElo "2256"]
[Result "1-0"]
[Round "01"]
[TimeControl "180+1"]
[Date "2021.10.05"]
[WhiteClock "0:01:31"]
[BlackClock "0:00:04"]

1. d4 {[%clk 0:02:57]}  Nf6 {[%clk 0:02:58]} 2. c4 {[%clk 0:02:56]}  c5 {[%clk 0:02:58]} 3. d5 {[%clk 0:02:56]}  b5 {[%clk 0:02:58]} 4. cxb5 {[%clk 0:02:57]}  a6 {[%clk 0:02:58]} 5. Nc3 {[%clk 0:02:58]}  axb5 {[%clk 0:02:53]} 6. e4 {[%clk 0:02:58]}  b4 {[%clk 0:02:50]} 7. Nb5 {[%clk 0:02:58]}  d6 {[%clk 0:02:47]} 8. Bc4 {[%clk 0:02:58]}  g6 {[%clk 0:02:43]} 9. e5 {[%clk 0:02:57]}  dxe5 {[%clk 0:02:39]} 10. d6 {[%clk 0:02:58]}  exd6 {[%clk 0:02:24]} 11. Bg5 {[%clk 0:02:57]}  Ra6 {[%clk 0:02:11]} 12. Qb3 {[%clk 0:02:42]}  d5 {[%clk 0:01:57]} 13. Bxd5 {[%clk 0:02:40]}  Be6 {[%clk 0:01:44]} 14. Bxf6 {[%clk 0:02:32]}  Bxd5 {[%clk 0:01:28]} 15. Bxd8 {[%clk 0:02:20]}  Bxb3 {[%clk 0:01:28]} 16. Nc7+ {[%clk 0:02:20]}  Kxd8 {[%clk 0:01:27]} 17. Nxa6 {[%clk 0:02:21]}  Nxa6 {[%clk 0:01:15]} 18. axb3 {[%clk 0:02:21]}  Nc7 {[%clk 0:01:14]} 19. Nf3 {[%clk 0:02:18]}  Bg7 {[%clk 0:01:10]} 20. Ng5 {[%clk 0:02:17]}  Ke7 {[%clk 0:01:10]} 21. Ra7 {[%clk 0:02:16]}  Rc8 {[%clk 0:01:10]} 22. Ke2 {[%clk 0:02:11]}  h6 {[%clk 0:01:09]} 23. Ne4 {[%clk 0:02:11]}  f5 {[%clk 0:00:57]} 24. Nxc5 {[%clk 0:02:11]}  Kd6 {[%clk 0:00:57]} 25. Rc1 {[%clk 0:02:07]}  Bf6 {[%clk 0:00:38]} 26. Na6 {[%clk 0:01:55]}  Nb5 {[%clk 0:00:31]} 27. Rxc8 {[%clk 0:01:56]}  Nxa7 {[%clk 0:00:31]} 28. Rg8 {[%clk 0:01:53]}  g5 {[%clk 0:00:25]} 29. Nxb4 {[%clk 0:01:51]}  Nb5 {[%clk 0:00:24]} 30. Nc2 {[%clk 0:01:51]}  e4 {[%clk 0:00:22]} 31. Rg6 {[%clk 0:01:51]}  Ke7 {[%clk 0:00:22]} 32. Rxh6 {[%clk 0:01:50]}  Bxb2 {[%clk 0:00:22]} 33. Rg6 {[%clk 0:01:41]}  Bf6 {[%clk 0:00:21]} 34. Rg8 {[%clk 0:01:39]}  Nc3+ {[%clk 0:00:22]} 35. Kd2 {[%clk 0:01:38]}  Nd5 {[%clk 0:00:21]} 36. Ne3 {[%clk 0:01:38]}  Nf4 {[%clk 0:00:04]} 37. Nxf5+ {[%clk 0:01:37]}  Kf7 {[%clk 0:00:05]} 38. Nh6+ {[%clk 0:01:37]}  Ke6 {[%clk 0:00:05]} 39. g3 {[%clk 0:01:36]}  Nd5 {[%clk 0:00:06]} 40. Re8+ {[%clk 0:01:34]}  Kd6 {[%clk 0:00:05]} 41. Rxe4 {[%clk 0:01:31]}  Bc3+ {[%clk 0:00:05]} 42. Kd3 {[%clk 0:01:31]}  Bg7 {[%clk 0:00:04]} 43. Nf5+ {[%clk 0:01:31]} 1-0


[Site "https://www.chess.com"]

[Event "Titled Tuesday Blitz October 5 2021"]
[White "Spitzl, Vinzent"]
[Black "Khusnutdinov, Rustam"]
[WhiteFideId "12901253"]
[BlackFideId "13701703"]
[WhiteElo "2160"]
[BlackElo "2571"]
[Result "0-1"]
[Round "01"]
[TimeControl "180+1"]
[Date "2021.10.05"]
[WhiteClock "0:00:05"]
[BlackClock "0:00:30"]

1. e4 {[%clk 0:02:56]}  e5 {[%clk 0:02:59]} 2. Nf3 {[%clk 0:02:54]}  Nf6 {[%clk 0:02:59]} 3. Nxe5 {[%clk 0:02:48]}  d6 {[%clk 0:02:58]} 4. Nf3 {[%clk 0:02:48]}  Nxe4 {[%clk 0:02:59]} 5. Nc3 {[%clk 0:02:49]}  Nxc3 {[%clk 0:02:59]} 6. dxc3 {[%clk 0:02:49]}  Be7 {[%clk 0:02:59]} 7. Be3 {[%clk 0:02:48]}  O-O {[%clk 0:03:00]} 8. Qd2 {[%clk 0:02:48]}  Nd7 {[%clk 0:03:01]} 9. O-O-O {[%clk 0:02:48]}  Nf6 {[%clk 0:03:02]} 10. h4 {[%clk 0:02:42]}  Be6 {[%clk 0:02:30]} 11. Kb1 {[%clk 0:02:38]}  c5 {[%clk 0:02:27]} 12. Ng5 {[%clk 0:02:38]}  Bd7 {[%clk 0:02:27]} 13. Bd3 {[%clk 0:02:35]}  b5 {[%clk 0:02:23]} 14. Be4 {[%clk 0:02:09]}  Rb8 {[%clk 0:02:19]} 15. Bf3 {[%clk 0:01:57]}  Qa5 {[%clk 0:02:12]} 16. Ne4 {[%clk 0:01:49]}  Nxe4 {[%clk 0:01:58]} 17. Bxe4 {[%clk 0:01:50]}  Be6 {[%clk 0:01:59]} 18. Bd5 {[%clk 0:01:50]}  b4 {[%clk 0:01:50]} 19. c4 {[%clk 0:01:46]}  Rb6 {[%clk 0:01:50]} 20. Qd3 {[%clk 0:01:39]}  Ra6 {[%clk 0:01:44]} 21. Qb3 {[%clk 0:01:39]}  Bd7 {[%clk 0:01:42]} 22. h5 {[%clk 0:01:27]}  Bf6 {[%clk 0:01:33]} 23. h6 {[%clk 0:01:23]}  g6 {[%clk 0:01:33]} 24. Bf4 {[%clk 0:01:17]}  Bc3 {[%clk 0:01:11]} 25. bxc3 {[%clk 0:01:06]}  bxc3 {[%clk 0:01:12]} 26. Bc1 {[%clk 0:00:39]}  Rb6 {[%clk 0:01:07]} 27. Rd3 {[%clk 0:00:32]}  Ba4 {[%clk 0:01:01]} 28. Rhh3 {[%clk 0:00:25]}  Bxb3 {[%clk 0:01:00]} 29. cxb3 {[%clk 0:00:25]}  c2+ {[%clk 0:00:59]} 30. Kxc2 {[%clk 0:00:25]}  Qxa2+ {[%clk 0:00:59]} 31. Bb2 {[%clk 0:00:26]}  a5 {[%clk 0:00:54]} 32. Rh1 {[%clk 0:00:14]}  Re8 {[%clk 0:00:53]} 33. Bf3 {[%clk 0:00:10]}  a4 {[%clk 0:00:41]} 34. Ra1 {[%clk 0:00:10]}  axb3+ {[%clk 0:00:41]} 35. Kc3 {[%clk 0:00:10]}  Reb8 {[%clk 0:00:30]} 36. Rxa2 {[%clk 0:00:05]}  bxa2 {[%clk 0:00:30]} 37. Ba1 {[%clk 0:00:05]}  Rb1 {[%clk 0:00:30]} 0-1


[Site "https://www.chess.com"]

[Event "Titled Tuesday Blitz October 5 2021"]
[White "Svane, Rasmus"]
[Black "Fataliyeva, Ulviyya"]
[WhiteFideId "4657101"]
[BlackFideId "13403052"]
[WhiteElo "2643"]
[BlackElo "2240"]
[Result "1-0"]
[Round "01"]
[TimeControl "180+1"]
[Date "2021.10.05"]
[WhiteClock "0:00:09"]
[BlackClock "0:00:01"]

1. Nf3 {[%clk 0:03:00]}  d5 {[%clk 0:02:52]} 2. g3 {[%clk 0:03:00]}  Bg4 {[%clk 0:02:52]} 3. Bg2 {[%clk 0:02:58]}  Nd7 {[%clk 0:02:51]} 4. O-O {[%clk 0:02:58]}  c6 {[%clk 0:02:49]} 5. h3 {[%clk 0:02:59]}  Bh5 {[%clk 0:02:46]} 6. d4 {[%clk 0:02:59]}  e6 {[%clk 0:02:42]} 7. c4 {[%clk 0:02:58]}  Bxf3 {[%clk 0:02:41]} 8. Bxf3 {[%clk 0:02:58]}  dxc4 {[%clk 0:02:39]} 9. Qc2 {[%clk 0:02:47]}  Nb6 {[%clk 0:02:38]} 10. Rd1 {[%clk 0:02:47]}  Nf6 {[%clk 0:02:37]} 11. e3 {[%clk 0:02:37]}  Nfd5 {[%clk 0:02:30]} 12. a3 {[%clk 0:02:32]}  Qf6 {[%clk 0:02:22]} 13. Nd2 {[%clk 0:02:29]}  Qg6 {[%clk 0:02:12]} 14. Be4 {[%clk 0:02:24]}  Qh5 {[%clk 0:01:51]} 15. Bg2 {[%clk 0:01:40]}  Qe2 {[%clk 0:01:26]} 16. Bf3 {[%clk 0:01:09]}  Qd3 {[%clk 0:00:43]} 17. Qxd3 {[%clk 0:01:09]}  cxd3 {[%clk 0:00:44]} 18. Ne4 {[%clk 0:01:10]}  O-O-O {[%clk 0:00:20]} 19. Rxd3 {[%clk 0:01:09]}  Nf6 {[%clk 0:00:20]} 20. Bd2 {[%clk 0:00:54]}  Nxe4 {[%clk 0:00:20]} 21. Bxe4 {[%clk 0:00:55]}  Be7 {[%clk 0:00:19]} 22. Rc1 {[%clk 0:00:55]}  Rd7 {[%clk 0:00:19]} 23. Ba5 {[%clk 0:00:49]}  Nd5 {[%clk 0:00:17]} 24. Rb3 {[%clk 0:00:45]}  Bd8 {[%clk 0:00:17]} 25. Be1 {[%clk 0:00:44]}  Bb6 {[%clk 0:00:16]} 26. Kf1 {[%clk 0:00:43]}  Rhd8 {[%clk 0:00:15]} 27. h4 {[%clk 0:00:41]}  Kb8 {[%clk 0:00:15]} 28. Ke2 {[%clk 0:00:39]}  Ka8 {[%clk 0:00:16]} 29. g4 {[%clk 0:00:34]}  Nf6 {[%clk 0:00:16]} 30. Bf3 {[%clk 0:00:34]}  Nd5 {[%clk 0:00:12]} 31. a4 {[%clk 0:00:31]}  Bc7 {[%clk 0:00:11]} 32. Be4 {[%clk 0:00:23]}  g6 {[%clk 0:00:08]} 33. f4 {[%clk 0:00:21]}  f5 {[%clk 0:00:07]} 34. Bf3 {[%clk 0:00:21]}  Nf6 {[%clk 0:00:06]} 35. g5 {[%clk 0:00:20]}  Ne4 {[%clk 0:00:06]} 36. h5 {[%clk 0:00:18]}  gxh5 {[%clk 0:00:04]} 37. Bxh5 {[%clk 0:00:18]}  h6 {[%clk 0:00:04]} 38. gxh6 {[%clk 0:00:06]}  Rh8 {[%clk 0:00:04]} 39. Bf3 {[%clk 0:00:07]}  Rxh6 {[%clk 0:00:04]} 40. Kd3 {[%clk 0:00:07]}  Rh3 {[%clk 0:00:03]} 41. Bxe4 {[%clk 0:00:07]}  fxe4+ {[%clk 0:00:04]} 42. Kxe4 {[%clk 0:00:08]}  Rd5 {[%clk 0:00:03]} 43. Bd2 {[%clk 0:00:07]}  Rh2 {[%clk 0:00:02]} 44. Rd3 {[%clk 0:00:07]}  a6 {[%clk 0:00:02]} 45. b4 {[%clk 0:00:08]}  Ka7 {[%clk 0:00:02]} 46. Rc5 {[%clk 0:00:08]}  Rd7 {[%clk 0:00:02]} 47. Rg5 {[%clk 0:00:07]}  Rf7 {[%clk 0:00:02]} 48. Rg6 {[%clk 0:00:07]}  Re7 {[%clk 0:00:01]} 49. b5 {[%clk 0:00:07]}  axb5 {[%clk 0:00:01]} 50. axb5 {[%clk 0:00:08]}  cxb5 {[%clk 0:00:01]} 51. Ra3+ {[%clk 0:00:09]} 1-0


[Site "https://www.chess.com"]